fUSD/lending_fUSD_20260517
["ID","MTS","AMOUNT","RATE_DAILY","PERIOD"]
[422513999,1779017454000,-300.0,0.00036422,2]
[422514010,1779017454000,-300.70672347,0.00036422,2]
[422514005,1779017454000,-1067.39759447,0.00036422,2]
[422514007,1779017454000,-726.3731759,0.00036422,2]
[422514009,1779017454000,-300.0,0.00036422,2]
[422514002,1779017454000,-604.73492277,0.00036422,2]
[422514012,1779017454000,-300.0,0.00036422,2]
[422514011,1779017454000,-300.0,0.00036422,2]
[422514022,1779017454000,-464.05309097,0.00036422,2]
[422514004,1779017454000,-527.9795525,0.00036422,2]
[422514030,1779017454000,-309.96996065,0.00036422,2]
[422514031,1779017454000,-300.0,0.00036422,2]
[422514013,1779017454000,-949.41386656,0.00036422,2]
[422514025,1779017454000,-452.10208933,0.00036422,2]
[422514023,1779017454000,-300.92112287,0.00036422,2]
[422514021,1779017454000,-300.0,0.00036422,2]
[422514019,1779017454000,-864.84573435,0.00036422,2]
[422514014,1779017454000,-1913.25849317,0.00036422,2]
[422514016,1779017454000,-527.12281632,0.00036422,2]
[422514018,1779017454000,-309.72976467,0.00036422,2]
[422514017,1779017454000,-1147.71030809,0.00036422,2]
[422514015,1779017454000,-344.12979214,0.00036422,2]
[422514020,1779017454000,-311.04198967,0.00036422,2]
[422514093,1779017455000,-300.0,0.00036422,2]
[422514098,1779017455000,-300.0,0.00036422,2]
[422514095,1779017455000,-309.96996065,0.00036422,2]
[422514096,1779017455000,-300.0,0.00036422,2]
[422514092,1779017455000,-452.10208933,0.00036422,2]
[422514088,1779017455000,-311.04198967,0.00036422,2]
[422514091,1779017455000,-579.20654482,0.00036422,2]
[422514090,1779017455000,-464.05309097,0.00036422,2]
[422514097,1779017455000,-1095.24427681,0.00036422,2]
[422514087,1779017455000,-864.84573435,0.00036422,2]
[422514099,1779017455000,-352.21149722,0.00036422,2]
[422514094,1779017455000,-484.30212364,0.00036422,2]
[422514100,1779017455000,-492.91797782,0.00036422,2]
[422514113,1779017455000,-527.12281632,0.00036422,2]
[422514101,1779017455000,-604.73492277,0.00036422,2]
[422514104,1779017455000,-1067.39759447,0.00036422,2]
[422514103,1779017455000,-527.9795525,0.00036422,2]
[422514102,1779017455000,-300.0,0.00036422,2]
[422514107,1779017455000,-301.92446648,0.00036422,2]
[422514106,1779017455000,-726.3731759,0.00036422,2]
[422514105,1779017455000,-893.8052833,0.00036422,2]
[422514110,1779017455000,-949.41386656,0.00036422,2]
[422514109,1779017455000,-300.70672347,0.00036422,2]
[422514120,1779017455000,-452.10208933,0.00036422,2]
[422514111,1779017455000,-1913.25849317,0.00036422,2]
[422514089,1779017455000,-300.0,0.00036422,2]
[422514108,1779017455000,-300.0,0.00036422,2]
[422514086,1779017455000,-309.72976467,0.00036422,2]
[422514060,1779017455000,-452.10208933,0.00036422,2]
[422514079,1779017455000,-307.83459329,0.00036422,2]
[422514058,1779017455000,-464.05309097,0.00036422,2]
[422514059,1779017455000,-577.47815809,0.00036422,2]
[422514061,1779017455000,-514.93187803,0.00036422,2]
[422514057,1779017455000,-300.0,0.00036422,2]
[422514056,1779017455000,-311.04198967,0.00036422,2]
[422514073,1779017455000,-1067.39759447,0.00036422,2]
[422514062,1779017455000,-300.0,0.00036422,2]
[422514063,1779017455000,-484.30212364,0.00036422,2]
[422514065,1779017455000,-300.0,0.00036422,2]
[422514064,1779017455000,-309.96996065,0.00036422,2]
[422514071,1779017455000,-300.0,0.00036422,2]
[422514068,1779017455000,-300.0,0.00036422,2]
[422514070,1779017455000,-604.73492277,0.00036422,2]
[422514066,1779017455000,-1095.24427681,0.00036422,2]
[422514069,1779017455000,-492.91797782,0.00036422,2]
[422514067,1779017455000,-300.0,0.00036422,2]
[422514072,1779017455000,-527.9795525,0.00036422,2]
[422514075,1779017455000,-726.3731759,0.00036422,2]
[422514077,1779017455000,-300.0,0.00036422,2]
[422514074,1779017455000,-893.8052833,0.00036422,2]
[422514085,1779017455000,-1147.71030809,0.00036422,2]
[422514076,1779017455000,-301.92446648,0.00036422,2]
[422514078,1779017455000,-300.70672347,0.00036422,2]
[422514114,1779017455000,-1147.71030809,0.00036422,2]
[422514080,1779017455000,-485.87466622,0.00036422,2]
[422514084,1779017455000,-527.12281632,0.00036422,2]
[422514082,1779017455000,-1913.25849317,0.00036422,2]
[422514083,1779017455000,-344.12979214,0.00036422,2]
[422514115,1779017455000,-309.72976467,0.00036422,2]
[422514081,1779017455000,-949.41386656,0.00036422,2]
[422514118,1779017455000,-300.0,0.00036422,2]
[422514151,1779017455000,-300.0,0.00036422,2]
[422514150,1779017455000,-309.96996065,0.00036422,2]
[422514148,1779017455000,-319.59907516,0.00036422,2]
[422514158,1779017455000,-1067.39759447,0.00036422,2]
[422514156,1779017455000,-302.10519097,0.00036422,2]
[422514157,1779017455000,-527.9795525,0.00036422,2]
[422514153,1779017455000,-300.0,0.00036422,2]
[422514154,1779017455000,-492.91797782,0.00036422,2]
[422514155,1779017455000,-604.73492277,0.00036422,2]
[422514160,1779017455000,-726.3731759,0.00036422,2]
[422514159,1779017455000,-893.8052833,0.00036422,2]
[422514165,1779017455000,-1913.25849317,0.00036422,2]
[422514170,1779017455000,-864.84573435,0.00036422,2]
[422514167,1779017455000,-527.12281632,0.00036422,2]
[422514161,1779017455000,-301.92446648,0.00036422,2]
[422514162,1779017455000,-300.0,0.00036422,2]
[422514164,1779017455000,-949.41386656,0.00036422,2]
[422514168,1779017455000,-1147.71030809,0.00036422,2]
[422514163,1779017455000,-300.70672347,0.00036422,2]
[422514166,1779017455000,-344.12979214,0.00036422,2]
[422514169,1779017455000,-309.72976467,0.00036422,2]
[422514171,1779017455000,-311.04198967,0.00036422,2]
[422514173,1779017455000,-464.05309097,0.00036422,2]
[422514175,1779017455000,-484.30212364,0.00036422,2]
[422514174,1779017455000,-452.10208933,0.00036422,2]
[422514176,1779017455000,-310.290671,0.00036422,2]
[422514172,1779017455000,-301.4150388,0.00036422,2]
[422514152,1779017455000,-1095.24427681,0.00036422,2]
[422514147,1779017455000,-452.10208933,0.00036422,2]
[422514112,1779017455000,-344.12979214,0.00036422,2]
[422514138,1779017455000,-1913.25849317,0.00036422,2]
[422514117,1779017455000,-311.04198967,0.00036422,2]
[422514119,1779017455000,-464.05309097,0.00036422,2]
[422514116,1779017455000,-864.84573435,0.00036422,2]
[422514123,1779017455000,-309.96996065,0.00036422,2]
[422514121,1779017455000,-300.0,0.00036422,2]
[422514122,1779017455000,-484.30212364,0.00036422,2]
[422514124,1779017455000,-300.0,0.00036422,2]
[422514149,1779017455000,-484.30212364,0.00036422,2]
[422514131,1779017455000,-1067.39759447,0.00036422,2]
[422514129,1779017455000,-300.0,0.00036422,2]
[422514128,1779017455000,-604.73492277,0.00036422,2]
[422514126,1779017455000,-300.0,0.00036422,2]
[422514133,1779017455000,-726.3731759,0.00036422,2]
[422514132,1779017455000,-893.8052833,0.00036422,2]
[422514125,1779017455000,-1095.24427681,0.00036422,2]
[422514127,1779017455000,-492.91797782,0.00036422,2]
[422514130,1779017455000,-527.9795525,0.00036422,2]
[422514134,1779017455000,-301.92446648,0.00036422,2]
[422514144,1779017455000,-311.04198967,0.00036422,2]
[422514146,1779017455000,-464.05309097,0.00036422,2]
[422514140,1779017455000,-527.12281632,0.00036422,2]
[422514145,1779017455000,-300.0,0.00036422,2]
[422514139,1779017455000,-344.12979214,0.00036422,2]
[422514137,1779017455000,-949.41386656,0.00036422,2]
[422514142,1779017455000,-309.72976467,0.00036422,2]
[422514141,1779017455000,-1147.71030809,0.00036422,2]
[422514143,1779017455000,-864.84573435,0.00036422,2]
[422514135,1779017455000,-300.0,0.00036422,2]
[422514136,1779017455000,-300.70672347,0.00036422,2]
[422514212,1779017456000,-949.41386656,0.00036422,2]
[422514228,1779017456000,-309.72976467,0.00036422,2]
[422514227,1779017456000,-300.0,0.00036422,2]
[422514219,1779017456000,-302.17037635,0.00036422,2]
[422514215,1779017456000,-415.14757774,0.00036422,2]
[422514217,1779017456000,-452.10208933,0.00036422,2]
[422514211,1779017456000,-401.36936969,0.00036422,2]
[422514210,1779017456000,-402.99801518,0.00036422,2]
[422514213,1779017456000,-1097.72662064,0.00036422,2]
[422514205,1779017456000,-807.24428727,0.00036422,2]
[422514209,1779017456000,-969.53972901,0.00036422,2]
[422514214,1779017456000,-1154.37542963,0.00036422,2]
[422514218,1779017456000,-646.39277227,0.00036422,2]
[422514233,1779017456000,-300.0,0.00036422,2]
[422514220,1779017456000,-1095.24427681,0.00036422,2]
[422514229,1779017456000,-864.84573435,0.00036422,2]
[422514221,1779017456000,-657.98739223,0.00036422,2]
[422514222,1779017456000,-357.33962821,0.00036422,2]
[422514226,1779017456000,-1791.55036629,0.00036422,2]
[422514223,1779017456000,-317.77499349,0.00036422,2]
[422514225,1779017456000,-366.83603862,0.00036422,2]
[422514224,1779017456000,-574.57708475,0.00036422,2]
[422514232,1779017456000,-300.0,0.00036422,2]
[422514231,1779017456000,-1791.55036629,0.00036422,2]
[422514235,1779017456000,-577.47815809,0.00036422,2]
[422514234,1779017456000,-464.05309097,0.00036422,2]
[422514207,1779017456000,-1067.39759447,0.00036422,2]
[422514230,1779017456000,-300.0,0.00036422,2]
[422514216,1779017456000,-464.05309097,0.00036422,2]
[422514191,1779017456000,-703.63489001,0.00036422,2]
[422514206,1779017456000,-704.78779194,0.00036422,2]
[422514242,1779017456000,-385.1569978,0.00036422,2]
[422514183,1779017456000,-1067.39759447,0.00036422,2]
[422514182,1779017456000,-527.9795525,0.00036422,2]
[422514179,1779017456000,-301.71662443,0.00036422,2]
[422514177,1779017456000,-300.0,0.00036422,2]
[422514178,1779017456000,-1095.24427681,0.00036422,2]
[422514180,1779017456000,-492.91797782,0.00036422,2]
[422514184,1779017456000,-893.8052833,0.00036422,2]
[422514185,1779017456000,-726.3731759,0.00036422,2]
[422514186,1779017456000,-301.92446648,0.00036422,2]
[422514192,1779017456000,-459.34682316,0.00036422,2]
[422514190,1779017456000,-1913.25849317,0.00036422,2]
[422514187,1779017456000,-302.00827489,0.00036422,2]
[422514188,1779017456000,-300.70672347,0.00036422,2]
[422514189,1779017456000,-949.41386656,0.00036422,2]
[422514195,1779017456000,-864.84573435,0.00036422,2]
[422514194,1779017456000,-603.58336859,0.00036422,2]
[422514193,1779017456000,-384.74032887,0.00036422,2]
[422514196,1779017456000,-311.04198967,0.00036422,2]
[422514197,1779017456000,-464.05309097,0.00036422,2]
[422514200,1779017456000,-300.0,0.00036422,2]
[422514199,1779017456000,-300.0,0.00036422,2]
[422514198,1779017456000,-452.10208933,0.00036422,2]
[422514203,1779017456000,-1095.24427681,0.00036422,2]
[422514202,1779017456000,-300.0,0.00036422,2]
[422514204,1779017456000,-492.91797782,0.00036422,2]
[422514201,1779017456000,-484.30212364,0.00036422,2]
[422514208,1779017456000,-1193.03276846,0.00036422,2]
[422514239,1779017456000,-484.30212364,0.00036422,2]
[422514181,1779017456000,-604.73492277,0.00036422,2]
[422514237,1779017456000,-300.0,0.00036422,2]
[422514269,1779017456000,-2173.808,0.00037602,2]
[422514271,1779017456000,-163.46,0.00037671,60]
[422514272,1779017456000,-386.98,0.00037672,30]
[422514279,1779017456000,-2173.808,0.00037861,2]
[422514276,1779017456000,-163.46,0.00037771,60]
[422514273,1779017456000,-204.55988069,0.00037677,60]
[422514278,1779017456000,-151.58,0.0003784,86]
[422514277,1779017456000,-350.0,0.00037808,90]
[422514274,1779017456000,-150.0,0.00037694,2]
[422514275,1779017456000,-184.66,0.00037766,60]
[422514283,1779017456000,-25967.30969384,0.000379,5]
[422514293,1779017456000,-200.0,0.00038,15]
[422514294,1779017456000,-151.0,0.00038,120]
[422514285,1779017456000,-267.935294,0.0003795,39]
[422514291,1779017456000,-153.0,0.00038,120]
[422514282,1779017456000,-205.75752157,0.0003788,2]
[422514286,1779017456000,-163.46,0.00037971,60]
[422514288,1779017456000,-238667.30348403,0.00038,2]
[422514284,1779017456000,-1239.6,0.000379,120]
[422514287,1779017456000,-692.41765724,0.00038,120]
[422514289,1779017456000,-1500.0,0.00038,5]
[422514292,1779017456000,-228.0,0.00038,30]
[422514296,1779017456000,-163.46,0.00038071,60]
[422514290,1779017456000,-1000.0,0.00038,60]
[422514298,1779017456000,-2173.808,0.0003812,2]
[422514299,1779017456000,-1290.8,0.00038125,30]
[422514297,1779017456000,-9607.43100594,0.000381,33]
[422514281,1779017456000,-163.46,0.00037871,60]
[422514280,1779017456000,-184.66139946,0.00037866,60]
[422514295,1779017456000,-168.93,0.00038025,5]
[422514265,1779017456000,-330.0,0.00037347,44]
[422514270,1779017456000,-184.66,0.00037666,60]
[422514241,1779017456000,-300.0,0.00036422,2]
[422514236,1779017456000,-452.10208933,0.00036422,2]
[422514238,1779017456000,-300.0,0.00036422,2]
[422514245,1779017456000,-300.0,0.00036422,2]
[422514243,1779017456000,-1095.24427681,0.00036422,2]
[422514244,1779017456000,-353.59451446,0.00036422,2]
[422514254,1779017456000,-230.0,0.00037,2]
[422514246,1779017456000,-2173.808,0.00036564,2]
[422514249,1779017456000,-2173.808,0.00036824,2]
[422514251,1779017456000,-4451.7470091,0.00037,90]
[422514250,1779017456000,-1239.6,0.000369,120]
[422514248,1779017456000,-482.01,0.00036751,60]
[422514247,1779017456000,-151.58,0.0003669,30]
[422514240,1779017456000,-300.0,0.00036422,2]
[422514253,1779017456000,-151.32304821,0.00037,2]
[422514252,1779017456000,-1000.0,0.00037,60]
[422514262,1779017456000,-6055.0,0.00037192,2]
[422514260,1779017456000,-1223.0,0.00037192,2]
[422514261,1779017456000,-3632.0,0.00037192,2]
[422514259,1779017456000,-1270.0,0.00037192,2]
[422514268,1779017456000,-362.0,0.000376,30]
[422514264,1779017456000,-2173.808,0.00037342,2]
[422514257,1779017456000,-17862.27190487,0.000371,2]
[422514256,1779017456000,-2173.808,0.00037083,2]
[422514255,1779017456000,-323.32,0.00037,15]
[422514267,1779017456000,-4411.28004785,0.0003759,2]
[422514263,1779017456000,-151.58,0.0003726,60]
[422514266,1779017456000,-580.33,0.000374,120]
[422514258,1779017456000,-571.709251,0.000371,30]
[422514328,1779017457000,-300.0,0.00038356,2]
[422514329,1779017457000,-300.0,0.00038356,2]
[422514332,1779017457000,-500.0,0.00038356,2]
[422514336,1779017457000,-500.0,0.00038356,2]
[422514333,1779017457000,-500.0,0.00038356,2]
[422514334,1779017457000,-500.0,0.00038356,2]
[422514335,1779017457000,-500.0,0.00038356,2]
[422514339,1779017457000,-500.0,0.00038356,2]
[422514343,1779017457000,-500.0,0.00038356,2]
[422514338,1779017457000,-500.0,0.00038356,2]
[422514331,1779017457000,-500.0,0.00038356,2]
[422514344,1779017457000,-500.0,0.00038356,2]
[422514347,1779017457000,-500.0,0.00038356,2]
[422514341,1779017457000,-500.0,0.00038356,2]
[422514340,1779017457000,-500.0,0.00038356,2]
[422514345,1779017457000,-500.0,0.00038356,2]
[422514330,1779017457000,-163.53372958,0.00038356,2]
[422514342,1779017457000,-500.0,0.00038356,2]
[422514346,1779017457000,-500.0,0.00038356,2]
[422514348,1779017457000,-500.0,0.00038356,2]
[422514349,1779017457000,-500.0,0.00038356,2]
[422514359,1779017457000,-500.0,0.00038356,2]
[422514350,1779017457000,-500.0,0.00038356,2]
[422514353,1779017457000,-500.0,0.00038356,2]
[422514337,1779017457000,-500.0,0.00038356,2]
[422514326,1779017457000,-300.0,0.00038356,2]
[422514316,1779017457000,-300.0,0.00038356,2]
[422514327,1779017457000,-300.0,0.00038356,2]
[422514354,1779017457000,-500.0,0.00038356,2]
[422514300,1779017457000,-273.293999,0.00038147,40]
[422514303,1779017457000,-163.46,0.00038271,60]
[422514301,1779017457000,-163.46,0.00038171,60]
[422514302,1779017457000,-161.80886572,0.00038234,30]
[422514308,1779017457000,-151.71000129,0.00038316,103]
[422514304,1779017457000,-3751.265,0.00038295,51]
[422514306,1779017457000,-4872.19622883,0.000383,30]
[422514305,1779017457000,-287.069,0.00038295,51]
[422514307,1779017457000,-161.45738708,0.000383,120]
[422514310,1779017457000,-2422.5,0.00038329,120]
[422514325,1779017457000,-300.0,0.00038356,2]
[422514320,1779017457000,-300.0,0.00038356,2]
[422514311,1779017457000,-2422.5,0.00038329,120]
[422514319,1779017457000,-300.0,0.00038356,2]
[422514313,1779017457000,-500.0,0.00038356,2]
[422514312,1779017457000,-500.0,0.00038356,2]
[422514315,1779017457000,-500.0,0.00038356,2]
[422514314,1779017457000,-500.0,0.00038356,2]
[422514317,1779017457000,-300.0,0.00038356,2]
[422514318,1779017457000,-300.0,0.00038356,2]
[422514322,1779017457000,-300.0,0.00038356,2]
[422514323,1779017457000,-300.0,0.00038356,2]
[422514324,1779017457000,-300.0,0.00038356,2]
[422514321,1779017457000,-300.0,0.00038356,2]
[422514309,1779017457000,-2118.97095087,0.00038329,120]
[422514351,1779017457000,-500.0,0.00038356,2]
[422514352,1779017457000,-500.0,0.00038356,2]
[422514388,1779017457000,-4001.4436199,0.00038385,120]
[422514395,1779017457000,-200.0,0.0003843,2]
[422514385,1779017457000,-300.0,0.0003838,2]
[422514390,1779017457000,-439.29,0.00038409,10]
[422514393,1779017457000,-200.0,0.0003843,2]
[422514391,1779017457000,-151.59,0.0003841,105]
[422514394,1779017457000,-200.0,0.0003843,2]
[422514387,1779017457000,-309.34,0.0003838,2]
[422514392,1779017457000,-200.0,0.0003843,2]
[422514389,1779017457000,-153.0,0.000384,120]
[422514396,1779017457000,-200.0,0.0003843,2]
[422514386,1779017457000,-300.0,0.0003838,2]
[422514398,1779017457000,-200.0,0.0003843,2]
[422514399,1779017457000,-200.0,0.0003843,2]
[422514406,1779017457000,-200.0,0.0003843,2]
[422514400,1779017457000,-200.0,0.0003843,2]
[422514401,1779017457000,-200.0,0.0003843,2]
[422514402,1779017457000,-200.0,0.0003843,2]
[422514404,1779017457000,-200.0,0.0003843,2]
[422514403,1779017457000,-200.0,0.0003843,2]
[422514408,1779017457000,-200.0,0.0003843,2]
[422514407,1779017457000,-200.0,0.0003843,2]
[422514409,1779017457000,-157.0,0.0003843,2]
[422514358,1779017457000,-500.0,0.00038356,2]
[422514405,1779017457000,-200.0,0.0003843,2]
[422514379,1779017457000,-500.0,0.00038356,2]
[422514397,1779017457000,-200.0,0.0003843,2]
[422514377,1779017457000,-500.0,0.00038356,2]
[422514357,1779017457000,-500.0,0.00038356,2]
[422514382,1779017457000,-300.0,0.0003838,2]
[422514355,1779017457000,-500.0,0.00038356,2]
[422514356,1779017457000,-500.0,0.00038356,2]
[422514361,1779017457000,-500.0,0.00038356,2]
[422514360,1779017457000,-479.53604544,0.00038356,2]
[422514369,1779017457000,-500.0,0.00038356,2]
[422514370,1779017457000,-500.0,0.00038356,2]
[422514371,1779017457000,-500.0,0.00038356,2]
[422514362,1779017457000,-500.0,0.00038356,2]
[422514363,1779017457000,-500.0,0.00038356,2]
[422514365,1779017457000,-500.0,0.00038356,2]
[422514372,1779017457000,-500.0,0.00038356,2]
[422514384,1779017457000,-300.0,0.0003838,2]
[422514364,1779017457000,-500.0,0.00038356,2]
[422514367,1779017457000,-500.0,0.00038356,2]
[422514366,1779017457000,-500.0,0.00038356,2]
[422514373,1779017457000,-500.0,0.00038356,2]
[422514376,1779017457000,-500.0,0.00038356,2]
[422514378,1779017457000,-500.0,0.00038356,2]
[422514374,1779017457000,-500.0,0.00038356,2]
[422514375,1779017457000,-500.0,0.00038356,2]
[422514380,1779017457000,-163.46,0.00038371,120]
[422514381,1779017457000,-300.0,0.0003838,2]
[422514383,1779017457000,-300.0,0.0003838,2]
[422514368,1779017457000,-500.0,0.00038356,2]
[422514450,1779017458000,-793.8003679,0.00038454,120]
[422514439,1779017458000,-200.0,0.0003843,2]
[422514448,1779017458000,-500.0,0.00038454,120]
[422514451,1779017458000,-500.0,0.00038454,120]
[422514454,1779017458000,-500.0,0.00038454,120]
[422514455,1779017458000,-500.0,0.00038454,120]
[422514445,1779017458000,-200.0,0.0003843,2]
[422514449,1779017458000,-500.0,0.00038454,120]
[422514444,1779017458000,-200.0,0.0003843,2]
[422514446,1779017458000,-336.0,0.0003843,2]
[422514440,1779017458000,-200.0,0.0003843,2]
[422514453,1779017458000,-500.0,0.00038454,120]
[422514447,1779017458000,-500.0,0.00038454,120]
[422514452,1779017458000,-500.0,0.00038454,120]
[422514466,1779017458000,-278.0,0.000385,120]
[422514456,1779017458000,-500.0,0.00038454,120]
[422514459,1779017458000,-500.0,0.00038454,120]
[422514461,1779017458000,-500.0,0.00038454,120]
[422514460,1779017458000,-500.0,0.00038454,120]
[422514458,1779017458000,-500.0,0.00038454,120]
[422514467,1779017458000,-12423.25976802,0.000386,120]
[422514465,1779017458000,-82523.84034153,0.000385,2]
[422514462,1779017458000,-500.0,0.00038454,120]
[422514464,1779017458000,-163.49906989,0.00038471,120]
[422514463,1779017458000,-883.7996865,0.00038454,120]
[422514469,1779017458000,-278.0,0.0003875,120]
[422514468,1779017458000,-482.01,0.00038613,60]
[422514437,1779017458000,-200.0,0.0003843,2]
[422514457,1779017458000,-500.0,0.00038454,120]
[422514442,1779017458000,-200.0,0.0003843,2]
[422514412,1779017458000,-200.0,0.0003843,2]
[422514443,1779017458000,-200.0,0.0003843,2]
[422514479,1779017458000,-150.0,0.00038858,30]
[422514418,1779017458000,-200.0,0.0003843,2]
[422514419,1779017458000,-200.0,0.0003843,2]
[422514414,1779017458000,-200.0,0.0003843,2]
[422514417,1779017458000,-200.0,0.0003843,2]
[422514411,1779017458000,-200.0,0.0003843,2]
[422514410,1779017458000,-200.0,0.0003843,2]
[422514415,1779017458000,-200.0,0.0003843,2]
[422514413,1779017458000,-200.0,0.0003843,2]
[422514416,1779017458000,-200.0,0.0003843,2]
[422514421,1779017458000,-200.0,0.0003843,2]
[422514422,1779017458000,-200.0,0.0003843,2]
[422514420,1779017458000,-200.0,0.0003843,2]
[422514438,1779017458000,-200.0,0.0003843,2]
[422514431,1779017458000,-200.0,0.0003843,2]
[422514425,1779017458000,-200.0,0.0003843,2]
[422514432,1779017458000,-200.0,0.0003843,2]
[422514423,1779017458000,-200.0,0.0003843,2]
[422514426,1779017458000,-200.0,0.0003843,2]
[422514427,1779017458000,-200.0,0.0003843,2]
[422514428,1779017458000,-200.0,0.0003843,2]
[422514429,1779017458000,-200.0,0.0003843,2]
[422514430,1779017458000,-200.0,0.0003843,2]
[422514434,1779017458000,-200.0,0.0003843,2]
[422514433,1779017458000,-200.0,0.0003843,2]
[422514435,1779017458000,-200.0,0.0003843,2]
[422514436,1779017458000,-200.0,0.0003843,2]
[422514441,1779017458000,-200.0,0.0003843,2]
[422514424,1779017458000,-200.0,0.0003843,2]
[422514471,1779017458000,-2094.90525371,0.000388,2]
[422514529,1779017458000,-2557.44843548,0.000394,11]
[422514481,1779017458000,-468742.32155187,0.0003888,60]
[422514500,1779017458000,-278.0,0.00039,120]
[422514501,1779017458000,-228.0,0.00039,30]
[422514510,1779017458000,-2008.18,0.00039243,120]
[422514514,1779017458000,-500.0,0.00039356,60]
[422514516,1779017458000,-500.0,0.00039356,60]
[422514509,1779017458000,-161.80886572,0.00039188,30]
[422514512,1779017458000,-278.0,0.0003925,120]
[422514521,1779017458000,-163.0,0.000394,11]
[422514520,1779017458000,-163.0,0.000394,11]
[422514513,1779017458000,-153.0,0.000393,120]
[422514511,1779017458000,-493.41,0.00039243,120]
[422514518,1779017458000,-1586.0,0.00039399,11]
[422514519,1779017458000,-2313.0,0.000394,11]
[422514505,1779017458000,-151.0,0.000391,120]
[422514515,1779017458000,-700.0,0.00039356,60]
[422514525,1779017458000,-2557.44843548,0.000394,11]
[422514524,1779017458000,-2557.44843549,0.000394,11]
[422514526,1779017458000,-2557.44843548,0.000394,11]
[422514528,1779017458000,-2557.44843548,0.000394,11]
[422514523,1779017458000,-2313.0,0.000394,11]
[422514530,1779017458000,-2557.44843548,0.000394,11]
[422514534,1779017458000,-150.0,0.00039412,2]
[422514533,1779017458000,-150.0,0.00039412,2]
[422514527,1779017458000,-2557.44843548,0.000394,11]
[422514531,1779017458000,-2557.44843548,0.000394,11]
[422514532,1779017458000,-2557.44843548,0.000394,11]
[422514535,1779017458000,-150.0,0.00039412,2]
[422514470,1779017458000,-362.0,0.000388,30]
[422514522,1779017458000,-2313.0,0.000394,11]
[422514496,1779017458000,-31316.95757879,0.00039,2]
[422514517,1779017458000,-1277.0,0.00039399,11]
[422514504,1779017458000,-14343.81,0.00039064,106]
[422514480,1779017458000,-293.593496,0.00038862,30]
[422514507,1779017458000,-1000.0,0.00039183,2]
[422514473,1779017458000,-12692.223441,0.00038834,2]
[422514474,1779017458000,-183.54670661,0.00038836,120]
[422514475,1779017458000,-604.08643201,0.00038836,120]
[422514476,1779017458000,-431.49030858,0.00038836,120]
[422514478,1779017458000,-234130.64348367,0.00038858,2]
[422514477,1779017458000,-527.30791134,0.00038836,120]
[422514482,1779017458000,-153.0,0.000389,120]
[422514485,1779017458000,-163.0,0.00038913,3]
[422514484,1779017458000,-1239.6,0.000389,120]
[422514483,1779017458000,-2140.93489132,0.000389,7]
[422514486,1779017458000,-877.4772,0.00038919,30]
[422514487,1779017458000,-359.71931752,0.0003892,14]
[422514493,1779017458000,-2000.0,0.0003895,2]
[422514472,1779017458000,-703.8582331,0.000388,2]
[422514491,1779017458000,-2000.0,0.0003895,2]
[422514490,1779017458000,-1582.847602,0.00038926,2]
[422514506,1779017458000,-2339.1459,0.00039154,30]
[422514499,1779017458000,-1000.0,0.00039,60]
[422514502,1779017458000,-200.0,0.00039,16]
[422514508,1779017458000,-400.0,0.00039183,2]
[422514497,1779017458000,-644.0,0.00039,120]
[422514503,1779017458000,-249.69730927,0.0003903,2]
[422514495,1779017458000,-151.59,0.0003899,116]
[422514488,1779017458000,-780755.885325,0.00038926,2]
[422514489,1779017458000,-3181.588162,0.00038926,2]